[Event "Live Chess"]
[Site "Chess.com"]
[Date "2023.05.20"]
[Round "-"]
[White "Delacorta"]
[Black "Shepherds_Pie"]
[Result "0-1"]
[WhiteElo "1423"]
[BlackElo "1907"]
[TimeControl "300"]
[EndTime "13:26:20 PDT"]
[Termination "Shepherds_Pie won by checkmate"]

1. d4 {[%clk 0:04:57.9]} 1... d5 {[%clk 0:04:51.3]} 2. Nf3 {[%clk 0:04:56.8]}
2... Nf6 {[%clk 0:04:49]} 3. e3 {[%clk 0:04:56.2]} 3... g6 {[%clk 0:04:46.6]} 4.
h3 {[%clk 0:04:50.6]} 4... Bg7 {[%clk 0:04:44.6]} 5. Nc3 {[%clk 0:04:49.1]} 5...
O-O {[%clk 0:04:41.9]} 6. b3 {[%clk 0:04:45.4]} 6... b6 {[%clk 0:04:37.7]} 7.
Bb2 {[%clk 0:04:44.5]} 7... c5 {[%clk 0:04:33.8]} 8. g4 {[%clk 0:04:25]} 8...
Bb7 {[%clk 0:04:29]} 9. g5 {[%clk 0:04:23.2]} 9... Nh5 {[%clk 0:04:23.2]} 10.
Be2 {[%clk 0:04:16.5]} 10... Nd7 {[%clk 0:04:21.7]} 11. O-O {[%clk 0:04:03.3]}
11... e5 {[%clk 0:04:18.5]} 12. Nxe5 {[%clk 0:04:01.8]} 12... Nxe5 {[%clk
0:04:16.5]} 13. dxe5 {[%clk 0:04:00.9]} 13... Bxe5 {[%clk 0:04:11.1]} 14. Bxh5
{[%clk 0:03:59.8]} 14... gxh5 {[%clk 0:04:07.5]} 15. Qxh5 {[%clk 0:03:58.6]}
15... Qd6 {[%clk 0:04:02.7]} 16. Nb5 {[%clk 0:03:47.3]} 16... Qe7 {[%clk
0:03:54.8]} 17. Bxe5 {[%clk 0:03:24.8]} 17... Qxe5 {[%clk 0:03:52.2]} 18. a4
{[%clk 0:02:58.5]} 18... a6 {[%clk 0:03:49.4]} 19. Na3 {[%clk 0:02:57.6]} 19...
Rae8 {[%clk 0:03:47.4]} 20. c4 {[%clk 0:02:55]} 20... d4 {[%clk 0:03:43.6]} 21.
exd4 {[%clk 0:02:45.1]} 21... cxd4 {[%clk 0:03:42.2]} 22. Rae1 {[%clk
0:02:40.9]} 22... Qf4 {[%clk 0:03:38.9]} 23. Rd1 {[%clk 0:02:14.3]} 23... Qe4
{[%clk 0:03:33.2]} 24. f3 {[%clk 0:01:55.4]} 24... Qe3+ {[%clk 0:03:29.8]} 25.
Kh1 {[%clk 0:01:30.1]} 25... Qf4 {[%clk 0:03:22.9]} 26. Nc2 {[%clk 0:01:21.7]}
26... Re2 {[%clk 0:03:18.7]} 27. Nxd4 {[%clk 0:01:17.2]} 27... Qh2# {[%clk
0:03:15]} 0-1

[Event "Live Chess"]
[Site "Chess.com"]
[Date "2023.05.20"]
[Round "-"]
[White "Bob2pen"]
[Black "tehanu"]
[Result "1-0"]
[WhiteElo "1836"]
[BlackElo "1155"]
[TimeControl "300"]
[EndTime "13:26:27 PDT"]
[Termination "Bob2pen won on time"]

1. e4 {[%clk 0:04:56.9]} 1... Nf6 {[%clk 0:04:45.5]} 2. Nc3 {[%clk 0:04:54.7]}
2... d5 {[%clk 0:04:40.6]} 3. e5 {[%clk 0:04:52.9]} 3... d4 {[%clk 0:04:39.2]}
4. exf6 {[%clk 0:04:51.6]} 4... dxc3 {[%clk 0:04:38.4]} 5. fxg7 {[%clk
0:04:49.3]} 5... cxd2+ {[%clk 0:04:37.5]} 6. Qxd2 {[%clk 0:04:47.9]} 6... Qxd2+
{[%clk 0:04:36.9]} 7. Bxd2 {[%clk 0:04:47]} 7... Bxg7 {[%clk 0:04:36.8]} 8.
O-O-O {[%clk 0:04:46]} 8... O-O {[%clk 0:04:35.8]} 9. Nf3 {[%clk 0:04:44.4]}
9... Nc6 {[%clk 0:04:35.1]} 10. Bc4 {[%clk 0:04:41.3]} 10... Ne5 {[%clk
0:04:33]} 11. Nxe5 {[%clk 0:04:38]} 11... Bxe5 {[%clk 0:04:27.7]} 12. Rhe1
{[%clk 0:04:32]} 12... Bd6 {[%clk 0:04:25.7]} 13. Bh6 {[%clk 0:04:27.3]} 13...
Re8 {[%clk 0:04:18]} 14. g3 {[%clk 0:04:23.5]} 14... Bg4 {[%clk 0:03:57]} 15.
Rd4 {[%clk 0:04:15.8]} 15... Bh5 {[%clk 0:03:49.4]} 16. h4 {[%clk 0:04:07.3]}
16... e5 {[%clk 0:03:46.8]} 17. Rd5 {[%clk 0:03:56.6]} 17... Bf3 {[%clk
0:03:12.7]} 18. Rd3 {[%clk 0:03:49.3]} 18... e4 {[%clk 0:03:11.3]} 19. Rb3
{[%clk 0:03:46.3]} 19... Rad8 {[%clk 0:02:52.5]} 20. Rb5 {[%clk 0:03:42.8]}
20... Re5 {[%clk 0:02:30.2]} 21. c3 {[%clk 0:03:20.9]} 21... a6 {[%clk
0:02:19.8]} 22. Rxe5 {[%clk 0:03:14.2]} 22... Bxe5 {[%clk 0:02:15.3]} 23. Be2
{[%clk 0:03:08.7]} 23... Bxe2 {[%clk 0:02:00.8]} 24. Rxe2 {[%clk 0:03:07.2]}
24... f5 {[%clk 0:02:00.2]} 25. Rd2 {[%clk 0:03:03.5]} 25... Rxd2 {[%clk
0:01:19.9]} 26. Kxd2 {[%clk 0:03:01.5]} 26... Kf7 {[%clk 0:01:19.4]} 27. b3
{[%clk 0:02:59.8]} 27... b5 {[%clk 0:01:16.7]} 28. c4 {[%clk 0:02:54]} 28... b4
{[%clk 0:00:51.2]} 29. Ke3 {[%clk 0:02:48.6]} 29... c5 {[%clk 0:00:34.1]} 30.
Bg5 {[%clk 0:02:35.3]} 30... Ke6 {[%clk 0:00:05.1]} 31. Bh6 {[%clk 0:02:25]}
31... Bd4+ {[%clk 0:00:05]} 32. Ke2 {[%clk 0:02:22.1]} 32... Be5 {[%clk
0:00:04.2]} 33. Bf8 {[%clk 0:02:20.6]} 33... Bd4 {[%clk 0:00:04.1]} 34. f3
{[%clk 0:02:18.4]} 34... exf3+ {[%clk 0:00:03.2]} 35. Kxf3 {[%clk 0:02:17.1]}
35... a5 {[%clk 0:00:02.7]} 36. g4 {[%clk 0:02:13.3]} 36... Kf7 {[%clk
0:00:02.6]} 37. Bd6 {[%clk 0:02:11.5]} 37... fxg4+ {[%clk 0:00:02.2]} 38. Kxg4
{[%clk 0:02:10.2]} 38... Ke6 {[%clk 0:00:02.1]} 39. Bc7 {[%clk 0:02:09.2]} 39...
Kf6 {[%clk 0:00:00.9]} 40. Bxa5 {[%clk 0:02:07.9]} 40... Be5 {[%clk 0:00:00.8]}
41. Bd8+ {[%clk 0:02:06.4]} 1-0

[Event "Live Chess"]
[Site "Chess.com"]
[Date "2023.05.20"]
[Round "-"]
[White "LiamClery2020"]
[Black "Reggie016"]
[Result "1-0"]
[WhiteElo "2081"]
[BlackElo "1069"]
[TimeControl "300"]
[EndTime "13:26:34 PDT"]
[Termination "LiamClery2020 won by checkmate"]

1. e4 {[%clk 0:04:59.6]} 1... e6 {[%clk 0:04:59.3]} 2. d4 {[%clk 0:04:56.1]}
2... d5 {[%clk 0:04:58.6]} 3. Nd2 {[%clk 0:04:55.7]} 3... dxe4 {[%clk
0:04:53.8]} 4. Nxe4 {[%clk 0:04:55.6]} 4... Nf6 {[%clk 0:04:53]} 5. Nxf6+ {[%clk
0:04:54.9]} 5... gxf6 {[%clk 0:04:52.5]} 6. Nf3 {[%clk 0:04:54.1]} 6... b6
{[%clk 0:04:52.1]} 7. c3 {[%clk 0:04:51.3]} 7... Bb7 {[%clk 0:04:51.2]} 8. Bd3
{[%clk 0:04:50.8]} 8... Nd7 {[%clk 0:04:49.7]} 9. Qe2 {[%clk 0:04:50]} 9... Qe7
{[%clk 0:04:49.1]} 10. Be4 {[%clk 0:04:49.1]} 10... Bxe4 {[%clk 0:04:28]} 11.
Qxe4 {[%clk 0:04:49]} 11... O-O-O {[%clk 0:04:25.5]} 12. Qa8+ {[%clk 0:04:43.8]}
12... Nb8 {[%clk 0:04:24.8]} 13. Qxa7 {[%clk 0:04:42.9]} 13... e5 {[%clk
0:04:13.3]} 14. O-O {[%clk 0:04:38.5]} 14... exd4 {[%clk 0:04:09.2]} 15. Nxd4
{[%clk 0:04:37.1]} 15... Rg8 {[%clk 0:04:00.6]} 16. Qxb8+ {[%clk 0:04:29.2]}
16... Kxb8 {[%clk 0:03:57.2]} 17. Nc6+ {[%clk 0:04:29.1]} 17... Kb7 {[%clk
0:03:52.1]} 18. Nxe7 {[%clk 0:04:29]} 18... Bxe7 {[%clk 0:03:51.8]} 19. Be3
{[%clk 0:04:28.9]} 19... h5 {[%clk 0:03:29.6]} 20. Rfe1 {[%clk 0:04:23.9]} 20...
Bd6 {[%clk 0:03:23.4]} 21. g3 {[%clk 0:04:14.2]} 21... h4 {[%clk 0:03:18.4]} 22.
Kg2 {[%clk 0:04:12.8]} 22... Rh8 {[%clk 0:03:12.7]} 23. Bd4 {[%clk 0:04:09.1]}
23... h3+ {[%clk 0:03:06.1]} 24. Kg1 {[%clk 0:04:08.1]} 24... Rh6 {[%clk
0:03:05]} 25. Re3 {[%clk 0:04:06.5]} 25... Bc5 {[%clk 0:02:59]} 26. Rd1 {[%clk
0:04:04.5]} 26... Rh5 {[%clk 0:02:50]} 27. Rf3 {[%clk 0:03:58.2]} 27... Bxd4
{[%clk 0:02:40.5]} 28. cxd4 {[%clk 0:03:58.1]} 28... Rb5 {[%clk 0:02:39.3]} 29.
b3 {[%clk 0:03:49.5]} 29... f5 {[%clk 0:02:34.6]} 30. Kf1 {[%clk 0:03:47.6]}
30... c5 {[%clk 0:02:29.5]} 31. Rxf5 {[%clk 0:03:45]} 31... Ra5 {[%clk
0:02:19.9]} 32. Rxf7+ {[%clk 0:03:40.1]} 32... Ka6 {[%clk 0:02:19.1]} 33. a4
{[%clk 0:03:36]} 33... cxd4 {[%clk 0:02:16.6]} 34. Rc1 {[%clk 0:03:34]} 34... d3
{[%clk 0:02:13.6]} 35. Rcc7 {[%clk 0:03:32.6]} 35... Ra8 {[%clk 0:02:10.7]} 36.
Rfd7 {[%clk 0:03:28.7]} 36... b5 {[%clk 0:02:01.7]} 37. Rc6# {[%clk 0:03:26.9]}
1-0

[Event "Live Chess"]
[Site "Chess.com"]
[Date "2023.05.20"]
[Round "-"]
[White "f4nomore"]
[Black "OSmith06"]
[Result "0-1"]
[WhiteElo "1379"]
[BlackElo "1651"]
[TimeControl "300"]
[EndTime "13:26:37 PDT"]
[Termination "OSmith06 won by resignation"]

1. d4 {[%clk 0:04:58.4]} 1... Nf6 {[%clk 0:04:58.6]} 2. Bg5 {[%clk 0:04:55.2]}
2... e6 {[%clk 0:04:56.7]} 3. Bxf6 {[%clk 0:04:53.8]} 3... Qxf6 {[%clk
0:04:56.6]} 4. c3 {[%clk 0:04:52.3]} 4... d5 {[%clk 0:04:54.9]} 5. Nf3 {[%clk
0:04:51]} 5... c5 {[%clk 0:04:52.1]} 6. e3 {[%clk 0:04:49.7]} 6... Nc6 {[%clk
0:04:46.3]} 7. Bb5 {[%clk 0:04:46.8]} 7... Bd7 {[%clk 0:04:43.9]} 8. Bxc6 {[%clk
0:04:43.8]} 8... Bxc6 {[%clk 0:04:43.8]} 9. O-O {[%clk 0:04:41.8]} 9... Be7
{[%clk 0:04:41.9]} 10. Ne5 {[%clk 0:04:40.3]} 10... O-O {[%clk 0:04:37.9]} 11.
Nxc6 {[%clk 0:04:38.6]} 11... bxc6 {[%clk 0:04:37.8]} 12. Nd2 {[%clk 0:04:37.2]}
12... cxd4 {[%clk 0:04:34.9]} 13. cxd4 {[%clk 0:04:35.5]} 13... c5 {[%clk
0:04:34.1]} 14. Nf3 {[%clk 0:04:33.9]} 14... cxd4 {[%clk 0:04:31.7]} 15. Nxd4
{[%clk 0:04:32.5]} 15... Bc5 {[%clk 0:04:27.1]} 16. b3 {[%clk 0:04:30.3]} 16...
Bxd4 {[%clk 0:04:17.6]} 17. Qxd4 {[%clk 0:04:22.5]} 17... Qxd4 {[%clk
0:04:16.4]} 18. exd4 {[%clk 0:04:21.6]} 18... Rfc8 {[%clk 0:04:14.2]} 19. Rac1
{[%clk 0:04:19.6]} 19... Kf8 {[%clk 0:04:10.4]} 20. Rc5 {[%clk 0:04:17.2]} 20...
Rxc5 {[%clk 0:04:01.3]} 21. dxc5 {[%clk 0:04:16]} 21... a5 {[%clk 0:04:00.9]}
22. Rc1 {[%clk 0:04:13.6]} 22... Ke7 {[%clk 0:03:59.5]} 23. f3 {[%clk
0:04:09.6]} 23... Kd7 {[%clk 0:03:58.8]} 24. Kf2 {[%clk 0:04:08.3]} 24... Kc6
{[%clk 0:03:58.1]} 25. Ke3 {[%clk 0:04:07.2]} 25... Rc8 {[%clk 0:03:57]} 26. Kd4
{[%clk 0:04:05.8]} 26... Kb5 {[%clk 0:03:56.4]} 27. Ke5 {[%clk 0:03:59.2]} 27...
Rxc5 {[%clk 0:03:53.6]} 28. Rxc5+ {[%clk 0:03:55.5]} 28... Kxc5 {[%clk
0:03:53.5]} 29. g3 {[%clk 0:03:53.3]} 29... Kc6 {[%clk 0:03:45.6]} 30. Kd4
{[%clk 0:03:51.7]} 30... f6 {[%clk 0:03:43.8]} 31. f4 {[%clk 0:03:50.2]} 31...
h5 {[%clk 0:03:39.9]} 32. a3 {[%clk 0:03:48.5]} 32... g5 {[%clk 0:03:35.6]} 33.
fxg5 {[%clk 0:03:45.3]} 33... fxg5 {[%clk 0:03:35.5]} 34. b4 {[%clk 0:03:41.4]}
34... axb4 {[%clk 0:03:34.1]} 35. axb4 {[%clk 0:03:39.9]} 35... h4 {[%clk
0:03:33.3]} 36. gxh4 {[%clk 0:03:37.8]} 36... gxh4 {[%clk 0:03:33.2]} 37. h3
{[%clk 0:03:36]} 37... Kb5 {[%clk 0:03:32.4]} 38. Kc3 {[%clk 0:03:26.5]} 38...
e5 {[%clk 0:03:30.9]} 39. Kb3 {[%clk 0:03:21.5]} 39... d4 {[%clk 0:03:27.7]} 40.
Kc2 {[%clk 0:03:19.4]} 40... Kxb4 {[%clk 0:03:26.2]} 41. Kd3 {[%clk 0:03:18.5]}
41... Kb3 {[%clk 0:03:24.8]} 42. Ke4 {[%clk 0:03:15.9]} 42... Kc3 {[%clk
0:03:24.2]} 0-1

[Event "Live Chess"]
[Site "Chess.com"]
[Date "2023.05.20"]
[Round "-"]
[White "chessleanstrategist"]
[Black "Brooms1989"]
[Result "0-1"]
[WhiteElo "397"]
[BlackElo "1018"]
[TimeControl "300"]
[EndTime "13:26:42 PDT"]
[Termination "Brooms1989 won by resignation"]

1. c4 {[%clk 0:04:58.5]} 1... e5 {[%clk 0:04:55.4]} 2. g3 {[%clk 0:04:57.8]}
2... Nf6 {[%clk 0:04:53.3]} 3. Bg2 {[%clk 0:04:57]} 3... Nc6 {[%clk 0:04:51.3]}
4. Nf3 {[%clk 0:04:55.6]} 4... e4 {[%clk 0:04:47.3]} 5. Ng1 {[%clk 0:04:28.5]}
5... d5 {[%clk 0:04:41.6]} 6. cxd5 {[%clk 0:04:26.7]} 6... Qxd5 {[%clk
0:04:41.5]} 7. b3 {[%clk 0:04:23.1]} 7... Bc5 {[%clk 0:04:28]} 8. Nc3 {[%clk
0:04:21.7]} 8... Qe6 {[%clk 0:04:19.4]} 9. e3 {[%clk 0:04:16.5]} 9... O-O {[%clk
0:04:13.6]} 10. Nge2 {[%clk 0:04:15.4]} 10... Ne7 {[%clk 0:04:03.7]} 11. O-O
{[%clk 0:04:09.1]} 11... Ng6 {[%clk 0:04:02.2]} 12. Nf4 {[%clk 0:03:54.5]} 12...
Nxf4 {[%clk 0:03:59.8]} 13. gxf4 {[%clk 0:03:54]} 13... Bb4 {[%clk 0:03:43.3]}
14. Ne2 {[%clk 0:03:45.8]} 14... Nd5 {[%clk 0:02:57.5]} 15. d4 {[%clk
0:03:43.9]} 15... exd3 {[%clk 0:02:54.8]} 16. Qxd3 {[%clk 0:03:41]} 16... c6
{[%clk 0:02:51.4]} 17. Nd4 {[%clk 0:03:30.7]} 17... Qh6 {[%clk 0:02:42.6]} 18.
Nf5 {[%clk 0:03:08.6]} 18... Bxf5 {[%clk 0:02:38.6]} 19. Qxf5 {[%clk 0:03:08.2]}
19... Rad8 {[%clk 0:02:00.4]} 20. Bxd5 {[%clk 0:03:03.9]} 20... Rxd5 {[%clk
0:01:57]} 21. Qg4 {[%clk 0:02:35.7]} 21... Rd6 {[%clk 0:01:40.1]} 22. Bb2 {[%clk
0:02:28.2]} 22... Rg6 {[%clk 0:01:37.4]} 23. Qxg6 {[%clk 0:02:21.5]} 23... Qxg6+
{[%clk 0:01:34.4]} 24. Kh1 {[%clk 0:02:21.2]} 24... Rd8 {[%clk 0:01:23]} 25. Rg1
{[%clk 0:02:18.7]} 25... Qe4+ {[%clk 0:01:20]} 26. Rg2 {[%clk 0:02:13.4]} 26...
Rd2 {[%clk 0:01:17]} 27. Kg1 {[%clk 0:02:00.6]} 27... f6 {[%clk 0:01:03.1]} 28.
Bd4 {[%clk 0:01:51.5]} 28... c5 {[%clk 0:00:54.5]} 29. f3 {[%clk 0:01:33.4]}
29... Qxf3 {[%clk 0:00:48.5]} 30. Rxd2 {[%clk 0:01:33.1]} 30... Bxd2 {[%clk
0:00:45.6]} 31. Rf1 {[%clk 0:01:32.7]} 31... Bxe3+ {[%clk 0:00:42.9]} 32. Bxe3
{[%clk 0:01:25.4]} 32... Qxe3+ {[%clk 0:00:42.8]} 33. Rf2 {[%clk 0:01:22.1]}
33... Kf7 {[%clk 0:00:38.4]} 34. Kg2 {[%clk 0:01:15.7]} 34... Qe4+ {[%clk
0:00:30.3]} 35. Rf3 {[%clk 0:01:10]} 35... Kg6 {[%clk 0:00:23.5]} 36. h4 {[%clk
0:01:09.5]} 36... Kh5 {[%clk 0:00:21.6]} 37. Kg3 {[%clk 0:01:08.3]} 37... g5
{[%clk 0:00:19.3]} 38. hxg5 {[%clk 0:00:58.8]} 38... fxg5 {[%clk 0:00:19.2]} 39.
fxg5 {[%clk 0:00:57]} 39... Qe5+ {[%clk 0:00:18]} 40. Rf4 {[%clk 0:00:50.5]}
40... Kxg5 {[%clk 0:00:16.1]} 41. Kf3 {[%clk 0:00:46.2]} 41... Qxf4+ {[%clk
0:00:15.4]} 0-1

[Event "Live Chess"]
[Site "Chess.com"]
[Date "2023.05.20"]
[Round "-"]
[White "booktrunk"]
[Black "rmethornhill"]
[Result "0-1"]
[WhiteElo "1275"]
[BlackElo "1186"]
[TimeControl "300"]
[EndTime "13:26:50 PDT"]
[Termination "rmethornhill won by resignation"]

1. d4 {[%clk 0:04:59.3]} 1... Nf6 {[%clk 0:04:57.8]} 2. Nf3 {[%clk 0:04:56.3]}
2... e6 {[%clk 0:04:56]} 3. h3 {[%clk 0:04:55.3]} 3... h5 {[%clk 0:04:49.7]} 4.
Bg5 {[%clk 0:04:53.5]} 4... Nc6 {[%clk 0:04:44.5]} 5. e3 {[%clk 0:04:51.1]} 5...
d5 {[%clk 0:04:41]} 6. Bb5 {[%clk 0:04:49.3]} 6... Bd7 {[%clk 0:04:39.1]} 7. Ne5
{[%clk 0:04:44]} 7... Be7 {[%clk 0:04:32.4]} 8. Nxd7 {[%clk 0:04:41.9]} 8...
Qxd7 {[%clk 0:04:28.2]} 9. Nc3 {[%clk 0:04:39]} 9... a6 {[%clk 0:04:26.4]} 10.
Ba4 {[%clk 0:04:37]} 10... b5 {[%clk 0:04:24.6]} 11. Bb3 {[%clk 0:04:36.4]}
11... Na5 {[%clk 0:04:09.6]} 12. a4 {[%clk 0:04:32.5]} 12... Nxb3 {[%clk
0:04:04.9]} 13. cxb3 {[%clk 0:04:31.6]} 13... b4 {[%clk 0:04:03.8]} 14. Ne2
{[%clk 0:04:28.4]} 14... a5 {[%clk 0:04:00.2]} 15. O-O {[%clk 0:04:26.1]} 15...
Ne4 {[%clk 0:03:49.9]} 16. Bxe7 {[%clk 0:04:23.9]} 16... Qxe7 {[%clk 0:03:49.4]}
17. f3 {[%clk 0:04:22.9]} 17... Nf6 {[%clk 0:03:41.2]} 18. Qd3 {[%clk
0:04:21.8]} 18... g5 {[%clk 0:03:37.1]} 19. Rac1 {[%clk 0:04:19.6]} 19... g4
{[%clk 0:03:32.4]} 20. h4 {[%clk 0:04:14.6]} 20... gxf3 {[%clk 0:03:28.7]} 21.
Rxf3 {[%clk 0:04:13.8]} 21... Rg8 {[%clk 0:03:20.4]} 22. Qb5+ {[%clk 0:04:10]}
22... Kd8 {[%clk 0:03:17]} 23. Rg3 {[%clk 0:04:06.5]} 23... Rxg3 {[%clk
0:03:06.6]} 24. Nxg3 {[%clk 0:04:05.2]} 24... Ng4 {[%clk 0:03:05]} 25. Qc6
{[%clk 0:03:54.8]} 25... Rc8 {[%clk 0:02:58.3]} 26. Qc2 {[%clk 0:03:36.8]} 26...
Qxh4 {[%clk 0:02:47.1]} 27. Nh1 {[%clk 0:03:31.8]} 27... Qh2+ {[%clk 0:02:40]}
28. Kf1 {[%clk 0:03:30.4]} 28... Nxe3+ {[%clk 0:02:37.5]} 29. Kf2 {[%clk
0:03:25.4]} 29... Nxc2 {[%clk 0:02:36.4]} 30. Rxc2 {[%clk 0:03:24.9]} 30... Qxh1
{[%clk 0:02:35.6]} 31. Kg3 {[%clk 0:03:21.8]} 31... Qe1+ {[%clk 0:02:33.4]} 32.
Kh3 {[%clk 0:03:19.5]} 32... Kd7 {[%clk 0:02:26.4]} 33. Kh2 {[%clk 0:03:16.8]}
33... Rg8 {[%clk 0:02:24.6]} 34. Kh3 {[%clk 0:03:14.7]} 34... Qe4 {[%clk
0:02:18.7]} 35. Kh2 {[%clk 0:03:12.8]} 35... Qxc2 {[%clk 0:02:15.2]} 0-1

[Event "Live Chess"]
[Site "Chess.com"]
[Date "2023.05.20"]
[Round "-"]
[White "tuppyglossop"]
[Black "1PRK1"]
[Result "1-0"]
[WhiteElo "1609"]
[BlackElo "1380"]
[TimeControl "300"]
[EndTime "13:27:04 PDT"]
[Termination "tuppyglossop won by resignation"]

1. e4 {[%clk 0:04:57.3]} 1... c5 {[%clk 0:04:59]} 2. Nf3 {[%clk 0:04:55.9]} 2...
d6 {[%clk 0:04:56.8]} 3. d4 {[%clk 0:04:54.8]} 3... cxd4 {[%clk 0:04:55.8]} 4.
Nxd4 {[%clk 0:04:54.7]} 4... a6 {[%clk 0:04:53.2]} 5. Bc4 {[%clk 0:04:50.5]}
5... Nf6 {[%clk 0:04:52.8]} 6. Nc3 {[%clk 0:04:48.9]} 6... b5 {[%clk 0:04:52]}
7. Bb3 {[%clk 0:04:47.8]} 7... e6 {[%clk 0:04:51.4]} 8. O-O {[%clk 0:04:46.2]}
8... b4 {[%clk 0:04:49.5]} 9. Na4 {[%clk 0:04:39]} 9... Nxe4 {[%clk 0:04:47.7]}
10. Qf3 {[%clk 0:04:37.3]} 10... Bb7 {[%clk 0:04:39.5]} 11. Bxe6 {[%clk
0:04:04]} 11... fxe6 {[%clk 0:04:28]} 12. Nxe6 {[%clk 0:04:02.2]} 12... Qe7
{[%clk 0:04:18.2]} 13. Qg4 {[%clk 0:03:27.8]} 13... Nf6 {[%clk 0:03:20.6]} 14.
Qe2 {[%clk 0:02:56.7]} 14... Kf7 {[%clk 0:02:57.1]} 15. Ng5+ {[%clk 0:02:48.3]}
15... Kg8 {[%clk 0:02:53]} 16. Qc4+ {[%clk 0:02:38.9]} 16... Bd5 {[%clk
0:02:51.7]} 17. Qc8 {[%clk 0:02:23.7]} 17... Nbd7 {[%clk 0:02:35.8]} 18. Qc7
{[%clk 0:02:06.5]} 18... Ne8 {[%clk 0:02:17.5]} 19. Qa5 {[%clk 0:01:49.7]} 19...
Qxg5 {[%clk 0:02:10.7]} 20. Bxg5 {[%clk 0:01:47.9]} 1-0

[Event "Live Chess"]
[Site "Chess.com"]
[Date "2023.05.20"]
[Round "-"]
[White "gregor1903"]
[Black "LiamBellwood"]
[Result "0-1"]
[WhiteElo "1567"]
[BlackElo "2057"]
[TimeControl "300"]
[EndTime "13:27:11 PDT"]
[Termination "LiamBellwood won by checkmate"]

1. e4 {[%clk 0:04:57.1]} 1... e6 {[%clk 0:04:59.9]} 2. d4 {[%clk 0:04:55.6]}
2... d5 {[%clk 0:04:59.6]} 3. e5 {[%clk 0:04:54.9]} 3... c5 {[%clk 0:04:58.9]}
4. Nf3 {[%clk 0:04:54.1]} 4... Nc6 {[%clk 0:04:58.8]} 5. Bd3 {[%clk 0:04:53]}
5... cxd4 {[%clk 0:04:57.9]} 6. O-O {[%clk 0:04:51.9]} 6... Bc5 {[%clk
0:04:54.5]} 7. Re1 {[%clk 0:04:46.8]} 7... Nge7 {[%clk 0:04:47.4]} 8. Nbd2
{[%clk 0:04:45.6]} 8... Bd7 {[%clk 0:04:40.5]} 9. a3 {[%clk 0:04:44.7]} 9... a5
{[%clk 0:04:39.4]} 10. Nb3 {[%clk 0:04:43.5]} 10... Bb6 {[%clk 0:04:33]} 11. Bf1
{[%clk 0:04:32.5]} 11... Nf5 {[%clk 0:04:22.2]} 12. Bd3 {[%clk 0:04:20.7]} 12...
Nh4 {[%clk 0:04:19.3]} 13. Bf1 {[%clk 0:03:54]} 13... Nxf3+ {[%clk 0:03:45.9]}
14. Qxf3 {[%clk 0:03:51.9]} 14... O-O {[%clk 0:03:43.8]} 15. Qg3 {[%clk
0:03:44.2]} 15... f6 {[%clk 0:03:15.5]} 16. Bh6 {[%clk 0:03:18.8]} 16... Rf7
{[%clk 0:03:14.6]} 17. exf6 {[%clk 0:03:01.9]} 17... Qxf6 {[%clk 0:03:13.6]} 18.
Bg5 {[%clk 0:02:57.1]} 18... Qg6 {[%clk 0:02:11.9]} 19. Bd3 {[%clk 0:02:55.3]}
19... Qh5 {[%clk 0:02:11.1]} 20. Nd2 {[%clk 0:02:27.7]} 20... e5 {[%clk
0:01:53.7]} 21. Rxe5 {[%clk 0:02:05.9]} 21... Bc7 {[%clk 0:01:18.8]} 22. Nf3
{[%clk 0:01:35.2]} 22... Nxe5 {[%clk 0:01:02.1]} 23. Nxe5 {[%clk 0:01:31.6]}
23... Re8 {[%clk 0:00:49.8]} 24. Re1 {[%clk 0:01:29.6]} 24... Bxe5 {[%clk
0:00:45.9]} 25. Rxe5 {[%clk 0:01:28]} 25... Qd1+ {[%clk 0:00:34.9]} 26. Bf1
{[%clk 0:01:25.3]} 26... Rxe5 {[%clk 0:00:32.2]} 27. Qxe5 {[%clk 0:01:23.4]}
27... Bb5 {[%clk 0:00:26.5]} 28. Qb8+ {[%clk 0:00:47.3]} 28... Rf8 {[%clk
0:00:25.2]} 29. c4 {[%clk 0:00:32.8]} 29... Bxc4 {[%clk 0:00:24.3]} 30. Qxb7
{[%clk 0:00:29.2]} 30... Qxf1# {[%clk 0:00:22.8]} 0-1

[Event "Live Chess"]
[Site "Chess.com"]
[Date "2023.05.20"]
[Round "-"]
[White "Pablo_dmp"]
[Black "Enhard"]
[Result "1-0"]
[WhiteElo "1885"]
[BlackElo "1464"]
[TimeControl "300"]
[EndTime "13:27:13 PDT"]
[Termination "Pablo_dmp won by checkmate"]

1. e4 {[%clk 0:04:59.6]} 1... c6 {[%clk 0:04:58.7]} 2. d4 {[%clk 0:04:58.3]}
2... d5 {[%clk 0:04:57.7]} 3. e5 {[%clk 0:04:56.7]} 3... Bf5 {[%clk 0:04:56.8]}
4. h4 {[%clk 0:04:55.3]} 4... h5 {[%clk 0:04:55.2]} 5. Bg5 {[%clk 0:04:53.7]}
5... Qd7 {[%clk 0:04:47.7]} 6. c4 {[%clk 0:04:45.7]} 6... e6 {[%clk 0:04:45.6]}
7. Nc3 {[%clk 0:04:44.6]} 7... Be7 {[%clk 0:04:43.6]} 8. Rc1 {[%clk 0:04:41.3]}
8... dxc4 {[%clk 0:04:36.3]} 9. Bxc4 {[%clk 0:04:38.7]} 9... Bb4 {[%clk
0:04:33.7]} 10. Nf3 {[%clk 0:04:35.4]} 10... Ne7 {[%clk 0:04:30.4]} 11. Qb3
{[%clk 0:04:31.8]} 11... Bxc3+ {[%clk 0:04:27.5]} 12. bxc3 {[%clk 0:04:31.7]}
12... Nd5 {[%clk 0:04:24.5]} 13. Bxd5 {[%clk 0:04:30.2]} 13... exd5 {[%clk
0:04:18.6]} 14. O-O {[%clk 0:04:26.8]} 14... O-O {[%clk 0:04:17.1]} 15. Nh2
{[%clk 0:04:15.1]} 15... Na6 {[%clk 0:04:11.1]} 16. Qd1 {[%clk 0:04:13.3]} 16...
g6 {[%clk 0:04:06.8]} 17. Bf6 {[%clk 0:04:10.3]} 17... Nc7 {[%clk 0:04:02.4]}
18. Qd2 {[%clk 0:04:09.9]} 18... Ne8 {[%clk 0:03:47.9]} 19. Qh6 {[%clk 0:04:07]}
19... Nxf6 {[%clk 0:03:35.7]} 20. exf6 {[%clk 0:04:06.9]} 20... g5 {[%clk
0:03:26.4]} 21. Qg7# {[%clk 0:04:06.8]} 1-0